bitfinex/quotes_ETHUSD_20240610
["timestamp","ask_amount","ask_price","bid_price","bid_amount"]
[1718028033727,0.06772196,3669.2,3669.1,2.72541]
[1718028034135,0.801,3669.3,3669.1,2.72541]
[1718028034309,0.06772196,3669.2,3669.1,2.72541]
[1718028034837,0.801,3669.3,3669.1,2.72541]
[1718028035010,0.06772196,3669.2,3669.1,2.72541]
[1718028035212,0.801,3669.3,3669.1,2.72541]
[1718028035530,0.06772196,3669.2,3669.1,2.72541]
[1718028035940,0.801,3669.3,3669.1,2.72541]
[1718028036101,0.06772196,3669.2,3669.1,2.72541]
[1718028036814,0.801,3669.3,3669.1,2.72541]
[1718028037018,0.06772196,3669.2,3669.1,2.72541]
[1718028037325,0.801,3669.3,3669.1,2.72541]
[1718028037503,0.06772196,3669.2,3669.1,2.72541]
[1718028038025,0.06706344,3669.2,3669.1,2.72541]
[1718028038207,0.801,3669.3,3669.1,2.72541]
[1718028038407,0.06706344,3669.2,3669.1,2.72541]
[1718028038641,2.72497,3669.8,3669.1,2.72541]
[1718028038964,0.801,3669.3,3669.1,2.72541]
[1718028040450,0.06505889,3669.2,3668.8,2.72563]
[1718028040738,0.801,3668.9,3668.5,2.72587]
[1718028040940,0.801,3668.6,3668.2,2.7261]
[1718028041152,0.801,3668.3,3668.2,2.7261]
[1718028041519,0.8660469,3668.3,3668.2,2.7261]
[1718028041706,8.2634469,3668.3,3667.9,7.28]
[1718028041907,0.801,3668.0,3667.9,7.28]
[1718028042127,0.801,3668.0,3667.8,2.72639]
[1718028042342,0.86555572,3668.0,3667.8,2.72639]
[1718028043447,0.06455572,3668.0,3667.8,2.72639]
[1718028043618,0.801,3668.2,3667.8,2.72639]
[1718028043857,0.06369292,3668.1,3667.8,2.72639]
[1718028045002,0.801,3667.9,3667.5,2.73261]
[1718028045279,10.1561,3668.4,3667.5,2.72661]
[1718028045280,0.801,3667.7,3667.5,2.72661]
[1718028045952,0.06378883,3667.6,3667.5,2.72661]
[1718028046479,2.7259,3668.6,3667.5,2.72661]
[1718028046480,0.801,3668.0,3667.5,2.72661]
[1718028047040,0.801,3668.0,3667.4,0.006]
[1718028047041,0.801,3668.0,3667.7,2.72644]
[1718028048869,2.72551,3669.1,3668.1,2.72613]
[1718028049186,0.801,3668.3,3668.1,2.72613]
[1718028051067,0.06290719,3668.2,3668.1,2.72613]
[1718028051259,7.3439,3668.5,3668.1,2.72613]
[1718028051509,0.06290719,3668.4,3668.1,2.72613]
[1718028052125,0.06290719,3668.4,3668.1,9.81833]
[1718028052287,12.14076,3669.3,3668.4,2.72597]
[1718028052493,2.72553,3669.1,3668.4,2.72597]
[1718028052730,2.72553,3669.1,3668.1,7.286]
[1718028052731,2.72565,3668.9,3668.1,10.01218]
[1718028052892,7.0679,3668.8,3668.1,10.00618]
[1718028053094,7.12863856,3668.8,3668.1,10.00618]
[1718028053911,2.72576,3668.7,3668.1,10.00618]
[1718028054108,1.17813986,3668.6,3668.1,10.00618]
[1718028054314,1.23895038,3668.6,3668.1,10.00618]
[1718028056929,1.23895038,3668.6,3668.1,2.72618]
[1718028057740,1.23895038,3668.6,3667.8,0.006]
[1718028057741,0.06081052,3668.6,3668.5,2.7259]
[1718028058097,9.67929,3669.4,3668.5,2.7259]
[1718028058335,11.60629,3669.4,3668.5,2.7259]
[1718028058535,2.72539,3669.2,3668.5,2.7259]
[1718028058935,0.05842143,3669.1,3668.5,2.7259]
[1718028059136,0.27838114,3669.0,3668.5,2.7259]
[1718028059718,0.05842143,3668.9,3668.5,2.7259]
[1718028060939,0.05842143,3668.9,3668.2,2.72609]
[1718028063224,6.9388,3668.8,3668.2,2.72609]
[1718028063546,0.05852944,3668.7,3668.2,2.72609]
[1718028063705,1.0586565,3668.7,3668.2,2.72609]
[1718028065510,1.0586565,3668.7,3667.9,7.286]
[1718028065819,1.0586565,3668.7,3667.9,7.28]
[1718028066424,2.726,3668.4,3667.9,7.28]
[1718028066611,0.05785553,3668.3,3667.8,2.7264]
[1718028066812,0.33624108,3668.3,3667.8,2.7264]
[1718028069013,0.05785553,3668.3,3667.6,0.006]
[1718028069214,3.72593706,3668.7,3668.0,2.72625]
[1718028069215,2.72581,3668.7,3668.0,2.72625]
[1718028069473,6.898,3669.2,3668.6,2.7258]
[1718028069615,2.72535,3669.3,3668.6,2.7258]
[1718028071482,0.05647061,3669.2,3668.6,2.7258]
[1718028072477,0.33465267,3669.2,3668.6,2.7258]
[1718028073041,0.05647061,3669.2,3668.8,2.72564]
[1718028073242,6.898,3669.6,3669.0,2.72549]
[1718028073456,0.05640586,3669.5,3669.0,2.72549]
[1718028073681,1.927,3669.7,3668.7,2.72571]
[1718028073982,2.7252,3669.5,3668.7,2.72571]
[1718028074556,0.05652599,3669.4,3668.7,2.72571]
[1718028075882,0.05652599,3669.4,3668.3,7.2614]
[1718028076054,0.05652599,3669.4,3668.9,2.72558]
[1718028076400,4.791,3670.1,3669.3,2.72527]
[1718028076401,2.72476,3670.1,3669.3,2.72527]
[1718028076683,0.4791,3670.0,3669.5,2.72512]
[1718028076881,0.05661011,3669.9,3669.5,2.72512]
[1718028077095,2.72469,3670.2,3669.5,2.72512]
[1718028077383,0.05661011,3669.8,3669.5,2.72512]
[1718028077708,0.05680831,3669.7,3669.2,2.72537]
[1718028078061,10.05937,3669.9,3669.2,2.72537]
[1718028078263,0.05680831,3669.8,3669.2,2.72537]
[1718028079194,0.05680831,3669.8,3668.9,2.72558]
[1718028079396,3.73664783,3669.7,3668.9,2.72558]
[1718028079757,4.65221,3669.5,3668.6,2.72581]
[1718028080160,0.05677227,3669.4,3668.6,2.72581]
[1718028080393,0.05677227,3669.4,3669.1,2.72541]
[1718028080664,2.72474,3670.1,3669.4,2.72523]
[1718028080889,0.05677227,3670.0,3669.4,2.72523]
[1718028084006,2.72489,3669.9,3669.1,9.81494]
[1718028084174,0.27816623,3669.8,3669.1,2.72544]
[1718028084374,0.3350646,3669.8,3669.1,2.72544]
[1718028085870,0.3350646,3669.8,3669.3,2.72528]
[1718028086166,0.05689837,3669.8,3669.3,2.72528]
[1718028086400,0.05689837,3669.8,3669.3,9.83708]
[1718028086707,2.72468,3670.2,3669.3,9.83708]
[1718028086868,0.05689837,3669.7,3669.3,9.83708]
[1718028087070,2.72468,3670.2,3669.3,9.83708]
[1718028087270,0.05689837,3669.6,3669.3,9.83708]
[1718028087472,1.185588,3670.1,3669.3,9.83708]
[1718028087727,0.05724669,3670.0,3669.3,9.83708]
[1718028088604,0.05724669,3670.0,3669.3,2.72528]
[1718028089129,2.72487,3669.9,3669.3,2.72528]
[1718028089283,0.39677047,3669.8,3669.3,2.72528]
[1718028089667,0.05724669,3669.7,3669.3,2.72528]
[1718028089873,0.39677047,3669.8,3669.3,2.72528]
[1718028090082,0.05724669,3669.7,3669.3,2.72528]
[1718028090305,0.39677047,3669.8,3669.3,2.72528]
[1718028090500,0.05724669,3669.6,3669.3,2.72528]
[1718028092512,0.05724669,3669.6,3669.0,2.72548]
[1718028092671,0.05724669,3669.6,3668.7,7.28]
[1718028092672,2.72517,3669.5,3668.7,10.00571]
[1718028092868,1.0550787,3669.4,3668.7,10.00571]
[1718028093313,2.72532,3669.3,3668.7,7.28]
[1718028093480,2.72532,3669.3,3668.4,2.72593]
[1718028093669,0.05719266,3669.2,3668.4,2.72593]
[1718028094615,2.72547,3669.1,3668.4,2.72593]
[1718028094785,0.27826627,3669.0,3668.4,2.72593]
[1718028094992,0.27826627,3669.0,3668.1,7.286]
[1718028094993,0.33515866,3669.0,3668.1,10.00616]
[1718028095317,2.72579,3668.7,3668.1,10.00616]
[1718028095497,2.72579,3668.7,3668.1,7.28]
[1718028095816,0.32926118,3668.6,3668.1,7.28]
[1718028100881,0.32926118,3668.6,3668.0,2.72623]
[1718028101084,0.272579,3668.6,3668.0,2.72623]
[1718028101389,2.72591,3668.5,3667.8,0.006]
[1718028101623,2.72591,3668.5,3667.8,3.0]
[1718028101917,0.05407735,3668.4,3667.8,3.0]
[1718028102212,0.05407735,3668.4,3667.9,2.72629]
[1718028102383,0.05407735,3668.4,3668.0,0.572629]
[1718028102578,0.05407735,3668.4,3668.3,2.72605]
[1718028102782,2.72549,3669.1,3668.3,2.72605]
[1718028103320,2.72549,3669.1,3668.2,7.3087]
[1718028103321,2.72549,3669.1,3668.5,2.72588]
[1718028103727,2.72526,3669.4,3668.2,0.03458]
[1718028103945,0.05404125,3669.0,3668.2,0.03458]
[1718028104222,2.72526,3669.4,3668.7,2.72573]
[1718028104602,0.05431785,3669.3,3668.7,2.72573]
[1718028105339,0.05431785,3669.3,3668.9,2.72555]
[1718028105823,2.72504,3669.7,3668.9,2.72555]
[1718028106042,0.05431785,3669.2,3668.9,2.72555]
[1718028106248,2.72522,3669.5,3668.9,2.72555]
[1718028106386,0.05452221,3669.1,3668.9,2.72555]
[1718028106737,0.05452221,3669.0,3668.9,2.72555]
[1718028107087,0.3679054,3669.4,3668.9,2.72555]
[1718028107301,0.05452221,3669.3,3668.9,2.72555]
[1718028112519,0.05452221,3669.3,3669.1,2.72544]
[1718028112831,2.72499,3669.8,3669.1,2.72544]
[1718028113037,0.05452221,3669.2,3669.1,2.72544]
[1718028113211,0.272499,3669.7,3669.1,2.72544]
[1718028113412,0.05495509,3669.2,3669.1,2.72544]
[1718028113596,0.272499,3669.7,3669.1,2.72544]
[1718028113796,0.05495509,3669.2,3669.1,2.72544]
[1718028113994,0.272499,3669.7,3669.1,2.72544]
[1718028114232,0.05495509,3669.2,3669.1,2.72544]
[1718028114436,0.2997489,3669.6,3669.1,2.72544]
[1718028114646,0.05495509,3669.2,3669.1,2.72544]
[1718028114801,0.2997489,3669.6,3669.1,2.72544]
[1718028115140,0.05495509,3669.5,3669.1,2.72544]
[1718028115643,0.3079804,3669.4,3669.1,2.72544]
[1718028116094,0.05495509,3669.3,3669.1,2.72544]
[1718028118503,0.05495509,3669.3,3668.8,2.72563]
[1718028120550,0.05495509,3669.3,3668.5,2.72584]
[1718028121556,2.78031509,3669.3,3668.5,2.72584]
[1718028121845,1.23252955,3669.2,3668.5,2.72584]
[1718028122057,0.05516549,3669.1,3668.5,2.72584]
[1718028123155,0.05516549,3669.1,3668.2,3.0]
[1718028123443,0.05516549,3669.1,3668.7,2.72569]
[1718028123812,0.3079804,3669.4,3668.7,2.72569]
[1718028124070,0.05437361,3669.0,3668.7,2.72569]
[1718028124238,2.72515,3669.6,3668.9,2.7256]
[1718028124610,2.72526,3669.4,3668.6,9.68996]
[1718028124809,0.272526,3669.3,3668.6,9.68996]
[1718028125611,0.272526,3669.3,3668.6,2.72576]
[1718028125840,2.72543,3669.2,3668.6,2.72576]
[1718028129151,0.272526,3669.3,3668.6,2.72576]
[1718028129357,2.72522,3669.5,3668.6,2.72576]
[1718028130156,2.72532,3669.3,3668.6,2.72576]
[1718028130658,2.72515,3669.6,3668.8,2.72565]
[1718028130863,2.72515,3669.6,3669.0,2.72551]
[1718028131064,0.802,3669.5,3669.0,2.72551]
[1718028131274,1.823025,3669.5,3669.0,2.72551]
[1718028131942,0.05448132,3669.4,3669.0,2.72551]
[1718028132261,1.021025,3669.5,3669.0,2.72551]
[1718028132462,2.72492,3669.9,3669.0,2.72551]
[1718028132633,0.802,3669.7,3669.0,2.72551]
[1718028132832,7.2782,3670.1,3668.9,7.164]
[1718028133062,0.05459553,3669.6,3669.5,7.109]
[1718028133223,9.67185,3670.5,3669.9,2.72484]
[1718028133621,0.05465565,3670.4,3669.9,2.72484]
[1718028134423,0.05465565,3670.4,3669.6,2.72505]
[1718028135364,2.72458,3670.3,3669.6,2.72505]
[1718028135549,0.97266357,3670.2,3669.6,2.72505]
[1718028135861,1.02772195,3670.2,3669.6,2.72505]
[1718028138229,2.72474,3670.1,3669.4,7.28]
[1718028138764,0.05525073,3670.0,3669.4,7.28]
[1718028138931,0.37526543,3669.9,3669.3,2.72526]
[1718028139465,0.05525073,3669.8,3669.3,2.72526]
[1718028142245,0.05525073,3669.8,3669.5,2.72513]
[1718028142751,0.05516658,3669.7,3669.5,2.72513]
[1718028143156,0.97266357,3670.2,3669.5,2.72513]
[1718028143375,3.09446936,3670.1,3669.5,2.72513]
[1718028143687,3.14963594,3670.1,3669.5,2.72513]
[1718028147278,0.42488594,3670.1,3669.7,10.09219]
[1718028147478,0.05516658,3670.1,3669.7,10.09219]
[1718028147805,2.72448,3670.5,3669.7,10.09219]
[1718028148192,0.0550043,3670.4,3669.7,10.09219]
[1718028150809,0.0550043,3670.4,3669.9,2.72485]
[1718028151003,0.0550043,3670.4,3670.1,2.72468]
[1718028151390,2.72426,3670.8,3670.1,2.72468]
[1718028151906,0.05545507,3670.7,3670.1,2.72468]
[1718028154609,2.72437,3670.6,3669.8,2.7249]
[1718028154904,0.05556323,3670.5,3669.8,2.7249]
[1718028155105,0.802,3670.2,3669.8,2.7249]
[1718028155705,0.05556323,3670.1,3669.8,2.7249]
[1718028157369,0.05556323,3670.1,3670.0,8.22]
[1718028157686,9.75628,3672.2,3670.7,7.418]
[1718028157889,0.802,3671.7,3671.3,2.72377]
[1718028158089,0.05187315,3672.1,3671.3,2.72377]
[1718028158090,0.802,3671.6,3671.3,2.72377]
[1718028158479,0.05187315,3671.5,3671.3,2.72377]
[1718028158721,0.05187315,3671.5,3671.0,2.72403]
[1718028159076,2.72337,3672.0,3671.0,2.72403]
[1718028159499,2.72346,3671.8,3671.0,2.72403]
[1718028160226,0.05189718,3671.7,3671.0,2.72403]
[1718028162532,0.05189718,3671.7,3671.0,4.038233]
[1718028162888,0.05189718,3671.7,3671.2,2.72385]
[1718028163113,2.72325,3672.1,3671.2,2.72385]
[1718028163536,0.05257601,3672.0,3671.2,2.72385]
[1718028163830,0.05257601,3672.0,3671.4,9.806]
[1718028164001,0.05257601,3672.0,3671.6,2.72359]
[1718028164204,2.72303,3672.4,3671.6,2.72359]
[1718028164407,0.05258201,3671.9,3671.6,2.72359]
[1718028164601,2.72303,3672.4,3671.6,2.72359]
[1718028164812,0.05258201,3671.8,3671.6,2.72359]
[1718028164991,2.72303,3672.4,3671.6,2.72359]
[1718028165393,0.05258201,3672.3,3671.6,2.72359]
[1718028167094,2.72316,3672.2,3671.6,2.72359]
[1718028167296,0.05290025,3672.1,3671.6,2.72359]
[1718028167931,2.72296,3672.5,3671.6,2.72359]
[1718028168108,2.72296,3672.5,3671.8,2.7234]
[1718028168506,0.05286425,3672.4,3671.8,2.7234]
[1718028169011,0.05286425,3672.4,3671.8,2.99574]
[1718028169342,0.05286425,3672.4,3672.1,7.1103]
[1718028169548,7.1161,3673.5,3672.5,2.72289]
[1718028169549,2.72233,3673.4,3672.5,2.72289]
[1718028169841,0.05392735,3673.3,3672.5,2.72289]
[1718028170043,1.04316309,3673.3,3672.5,2.72289]
[1718028170394,2.72243,3673.2,3672.5,2.72289]
[1718028170910,2.72243,3673.2,3672.2,10.00314]
[1718028171115,2.91223574,3673.3,3672.2,10.00314]
[1718028171116,2.72261,3673.0,3672.2,10.00314]
[1718028171611,0.05429951,3672.9,3672.2,10.00314]
[1718028173699,0.05349004,3672.9,3672.2,10.00314]
[1718028174146,0.05349004,3672.9,3672.2,2.72314]
[1718028174895,2.72273,3672.8,3672.2,2.72314]
[1718028175404,0.05427253,3672.7,3672.2,2.72314]
[1718028175804,2.72273,3672.8,3672.2,2.72314]
[1718028176339,0.05455467,3672.7,3672.2,2.72314]
[1718028176700,2.72273,3672.8,3672.2,2.72314]
[1718028177100,0.05455467,3672.7,3672.2,2.72314]
[1718028177331,2.72273,3672.8,3672.2,2.72314]
[1718028177743,0.05455467,3672.7,3672.2,2.72314]
[1718028178162,2.72253,3673.1,3672.2,2.72314]
[1718028178337,2.72253,3673.1,3672.4,2.72295]
[1718028178516,0.05458469,3673.0,3672.4,2.72295]
[1718028179752,0.05458469,3673.0,3672.6,2.72283]
[1718028180045,2.72231,3673.4,3672.6,2.72283]
[1718028180261,0.05466871,3672.9,3672.6,2.72283]
[1718028180405,3.706151,3673.4,3672.6,2.72283]
[1718028180607,0.05475874,3672.8,3672.6,2.72283]
[1718028180952,2.72244,3673.2,3672.6,2.72283]
[1718028181663,0.05475874,3673.1,3672.6,2.72283]
[1718028182354,0.05475874,3673.1,3672.0,3.0]
[1718028182355,2.72257,3673.0,3672.0,3.0]
[1718028182504,2.72274,3672.8,3672.0,13.08316]
[1718028182943,0.05483075,3672.7,3672.2,2.72313]
[1718028183139,2.72274,3672.8,3672.2,2.72313]
[1718028183501,0.05483075,3672.7,3672.2,2.72313]
[1718028183989,2.72274,3672.8,3672.2,2.72313]
[1718028184209,2.995014,3672.8,3672.2,2.72313]
[1718028184411,2.72288,3672.6,3672.0,3.0]
[1718028184709,2.72304,3672.4,3672.0,3.0]
[1718028184920,3.00082708,3672.4,3671.9,3.0]
[1718028185321,0.05483075,3672.3,3671.9,3.0]
[1718028186277,0.05483075,3672.3,3671.5,10.00363]
[1718028186634,3.00082708,3672.4,3671.6,3.0]
[1718028186979,0.05454265,3672.3,3671.6,3.0]
[1718028187305,3.00082708,3672.4,3671.6,3.0]
[1718028187805,0.05454265,3672.3,3671.6,3.0]
[1718028187986,2.7232,3672.2,3671.6,3.0]
[1718028188188,2.72331,3672.0,3671.5,10.00363]
[1718028188965,2.72313,3672.3,3671.5,10.00363]
[1718028189273,2.72289,3672.6,3671.7,2.7235]
[1718028189473,0.05417051,3672.2,3671.7,2.7235]
[1718028189766,2.72268,3672.9,3672.1,2.72323]
[1718028190409,2.72281,3672.7,3672.1,2.72323]
[1718028190707,2.72281,3672.7,3671.8,3.72376]
[1718028190908,2.72281,3672.7,3671.9,3.0]
[1718028191408,0.05241501,3672.6,3671.9,3.0]
[1718028193089,7.04601501,3672.6,3671.9,3.0]
[1718028193474,2.72294,3672.5,3671.9,3.0]
[1718028193915,0.05247508,3672.4,3671.9,3.0]
[1718028194431,0.05247508,3672.4,3672.0,2.72329]
[1718028195078,4.64576,3672.8,3672.0,2.72329]
[1718028195278,0.05254116,3672.3,3672.0,2.72329]
[1718028195483,4.64576,3672.8,3672.0,2.72329]
[1718028195718,0.05254116,3672.2,3672.0,4.034809]
[1718028195921,2.72254,3673.1,3672.3,2.72302]
[1718028196286,0.05277542,3673.0,3672.5,9.74551]
[1718028197387,0.05277542,3673.0,3672.5,2.72291]
[1718028198239,0.33030696,3673.0,3672.5,2.72291]
[1718028198391,2.72265,3672.9,3672.2,2.72312]
[1718028198732,0.05299765,3672.8,3672.3,3.0]
[1718028199291,2.72279,3672.7,3672.3,3.0]
[1718028199894,0.05308175,3672.6,3672.3,3.0]
[1718028200525,0.05308175,3672.6,3672.0,3.0]
[1718028201426,2.72295,3672.5,3672.0,3.0]
[1718028201732,2.72295,3672.5,3671.9,2.72333]
[1718028202122,0.05298565,3672.4,3671.9,2.72333]
[1718028203193,2.72309,3672.3,3671.6,5.72358]
[1718028203396,2.72325,3672.1,3671.6,3.0]
[1718028203731,3.70504056,3672.1,3671.6,3.0]
[1718028203906,0.05295562,3672.0,3671.6,3.0]
[1718028205037,8.9647,3672.3,3671.6,3.0]
[1718028205236,0.05295562,3671.9,3671.6,3.0]
[1718028205531,1.923,3672.3,3671.7,2.72353]
[1718028205738,0.05270328,3671.8,3671.7,4.751413]
[1718028206037,1.923,3672.3,3671.7,4.751413]
[1718028206644,1.923,3672.3,3671.9,2.72335]
[1718028206645,0.05270328,3672.2,3671.9,2.72335]
[1718028207143,10.09543,3672.7,3671.9,2.72335]
[1718028207144,12.01843,3672.7,3671.9,2.72335]
[1718028207441,1.201843,3672.6,3671.9,2.72335]
[1718028207651,1.25466645,3672.6,3671.9,2.72335]
[1718028208241,0.05282345,3672.6,3671.9,2.72335]
[1718028208445,0.05282345,3672.6,3671.6,3.0]
[1718028208646,9.91742,3673.0,3671.6,3.0]
[1718028208864,0.05297965,3672.5,3671.6,3.56915502]
[1718028209209,9.91742,3673.0,3671.6,3.0]
[1718028209314,9.91742,3673.0,3671.7,2.0848205]
[1718028209730,0.05297965,3672.9,3671.7,2.0848205]
[1718028209950,9.91742,3673.0,3672.2,2.72313]
[1718028210338,0.05297965,3672.9,3672.2,2.72313]
[1718028210949,4.64572,3672.8,3672.2,2.72313]
[1718028211149,5.83506996,3672.8,3672.2,2.72313]
[1718028211458,0.05297965,3672.7,3672.2,2.72313]
[1718028214123,2.72288,3672.6,3671.9,2.72334]
[1718028214352,0.05305172,3672.5,3671.9,2.72334]
[1718028215350,0.05305172,3672.5,3672.1,2.72321]
[1718028215551,1.923,3672.8,3672.1,2.72321]
[1718028215777,0.05305172,3672.7,3672.1,2.72321]
[1718028223119,2.77585172,3672.7,3672.1,2.72321]
[1718028226633,0.05305172,3672.7,3672.1,2.72321]
[1718028227050,0.801,3672.3,3672.1,10.19321]
[1718028229605,0.05106252,3672.2,3672.1,10.19321]
[1718028229930,0.801,3672.3,3672.1,10.19321]
[1718028230292,0.05106252,3672.2,3672.1,10.19321]
[1718028230623,0.801,3672.3,3672.1,10.19321]
[1718028230819,0.05106252,3672.2,3672.1,10.19321]
[1718028231022,0.801,3672.3,3672.1,10.19321]
[1718028231188,0.05106252,3672.2,3672.1,2.72321]
[1718028231529,0.801,3672.3,3672.1,2.72321]
[1718028231823,0.05103249,3672.2,3672.1,2.72321]
[1718028232038,0.801,3672.3,3672.1,2.72321]
[1718028232533,0.05103249,3672.2,3672.1,2.72321]
[1718028233038,0.801,3672.3,3672.1,2.72321]
[1718028233237,0.05103849,3672.2,3672.1,2.72321]
[1718028233440,0.801,3672.3,3672.1,2.72321]
[1718028233936,0.05103849,3672.2,3672.1,2.72321]
[1718028234347,0.801,3672.3,3672.1,2.72321]
[1718028234639,0.801,3672.3,3671.7,6.8733]
[1718028234640,0.05101446,3672.2,3671.7,7.44245502]
[1718028234872,0.801,3671.9,3671.8,2.72341]
[1718028235206,0.85201446,3671.9,3671.8,2.72341]
[1718028236049,0.801,3671.9,3671.8,2.72341]
[1718028241065,7.312086,3672.3,3671.8,2.72341]
[1718028241291,0.801,3672.0,3671.8,2.72341]
[1718028242080,0.05093629,3671.9,3671.8,2.72341]
[1718028242535,0.801,3672.0,3671.8,2.72341]
[1718028242871,0.0508039,3671.9,3671.8,2.72341]
[1718028243256,0.801,3672.2,3671.8,2.72341]
[1718028243774,0.05043935,3672.1,3671.8,2.72341]
[1718028243982,0.05043935,3672.1,3672.0,2.72331]
[1718028244346,0.801,3672.2,3672.0,2.72331]
[1718028244568,0.05039725,3672.1,3672.0,2.72331]
[1718028245890,0.801,3672.4,3672.2,2.72311]
[1718028246262,0.05037921,3672.3,3672.2,2.72311]
[1718028246662,0.801,3672.4,3672.2,2.72311]
[1718028247055,0.05040328,3672.3,3672.2,2.72311]
[1718028247454,0.801,3672.3,3672.2,2.72311]
[1718028248070,2.72271,3672.8,3672.2,2.72311]
[1718028248272,0.801,3672.4,3672.2,2.72311]
[1718028248849,0.05054158,3672.3,3672.2,2.72311]
[1718028249051,0.801,3672.4,3672.2,2.72311]
[1718028249470,0.05054158,3672.3,3672.2,2.72311]
[1718028249951,0.801,3672.4,3672.2,2.72311]
[1718028250351,0.05054158,3672.3,3672.2,2.72311]
[1718028250790,0.801,3672.4,3672.2,2.72311]
[1718028250980,0.801,3672.4,3671.9,2.72338]
[1718028251175,0.801,3672.0,3671.9,2.72338]
[1718028251551,0.85150551,3672.0,3671.9,2.72338]
[1718028252173,0.05050551,3672.0,3671.9,2.72338]
[1718028252597,0.801,3672.2,3671.9,2.72338]
[1718028253080,0.04879313,3672.1,3671.9,2.72338]
[1718028253681,0.801,3672.0,3671.9,2.72338]
[1718028254274,0.84979313,3672.0,3671.9,2.72338]
[1718028255677,0.84979313,3672.0,3671.6,2.72355]
[1718028255901,0.801,3671.8,3671.4,0.56915502]
[1718028256097,0.801,3671.6,3671.4,0.56915502]
[1718028256595,0.801,3671.6,3671.3,2.72377]
[1718028258608,6.8812,3672.1,3671.5,2.72362]
[1718028258764,0.801,3672.0,3671.3,1.09498042]
[1718028258967,0.801,3672.0,3671.3,1.66413544]
[1718028258968,0.8492876,3672.0,3671.3,1.66413544]
[1718028259189,0.8492876,3672.0,3671.4,0.56915502]
[1718028259412,0.801,3672.0,3671.4,2.02471846]
[1718028259766,0.801,3672.1,3671.7,2.72351]
[1718028264091,0.801,3671.9,3671.7,2.72351]
[1718028264571,0.04842602,3671.8,3671.7,2.72351]
[1718028267802,0.801,3672.0,3671.7,2.72351]
[1718028268013,0.04842602,3671.8,3671.7,2.72351]
[1718028268167,0.801,3672.0,3671.7,2.72351]
[1718028268374,0.04838991,3671.8,3671.7,2.72351]
[1718028268573,0.801,3672.0,3671.7,2.72351]
[1718028268793,0.04838991,3671.8,3671.7,2.72351]
[1718028269272,0.801,3672.0,3671.7,2.72351]
[1718028269588,0.04838991,3671.8,3671.7,2.72351]
[1718028269765,0.801,3672.0,3671.7,2.72351]
[1718028269973,0.04838991,3671.8,3671.7,2.72351]
[1718028270466,0.801,3672.0,3671.7,2.72351]
[1718028270670,0.04851028,3671.9,3671.7,2.72351]
[1718028272287,0.04851028,3671.9,3671.7,2.995861]
[1718028272486,0.801,3672.1,3671.7,2.995861]
[1718028273505,0.801,3672.1,3671.7,2.72351]
[1718028273891,0.801,3671.9,3671.7,2.72351]
[1718028274309,0.04850428,3671.8,3671.7,2.72351]
[1718028276807,0.801,3672.1,3671.7,2.72351]
[1718028277020,0.04840797,3671.8,3671.7,2.72351]
[1718028277190,0.801,3672.1,3671.7,2.72351]
[1718028277598,7.0301,3672.5,3671.7,0.272351]
[1718028277907,2.864,3673.5,3671.8,10.15645]
[1718028277908,0.801,3672.3,3671.8,10.15645]
[1718028278291,0.801,3672.5,3672.2,2.72316]
[1718028282090,0.801,3672.3,3672.2,2.72316]
[1718028282602,0.84977507,3672.3,3672.2,2.72316]
[1718028283497,0.04877507,3672.3,3672.2,2.72316]
[1718028283701,0.84977507,3672.3,3672.2,2.72316]
[1718028286640,0.84977507,3672.3,3671.9,2.72331]
[1718028286821,0.801,3672.1,3671.9,2.72331]
[1718028287324,0.58828507,3673.3,3672.3,2.72304]
[1718028287529,0.801,3673.3,3672.4,6.8408]
[1718028287730,0.04714426,3673.2,3672.4,6.8408]
[1718028287931,0.801,3673.3,3672.4,6.8408]
[1718028288093,0.801,3673.3,3672.5,1.17894993]
[1718028288298,7.0064,3673.7,3672.5,1.17894993]
[1718028288502,0.801,3673.2,3672.4,6.8408]
[1718028289854,0.801,3673.2,3672.8,2.72264]
[1718028290157,0.04740923,3673.1,3672.8,2.72264]
[1718028290349,7.0064,3673.7,3673.0,2.72255]
[1718028290651,0.801,3673.1,3673.0,2.72255]
[1718028291221,0.84840923,3673.1,3673.0,2.72255]
[1718028292067,0.04740923,3673.1,3673.0,2.72255]
[1718028292363,0.801,3673.3,3673.0,2.72255]
[1718028292518,0.04740923,3673.1,3673.0,2.72255]
[1718028293227,0.801,3673.3,3673.0,2.72255]
[1718028293737,0.801,3673.1,3673.0,2.72255]
[1718028294453,0.04740923,3673.1,3673.0,2.72255]
[1718028294820,0.801,3673.2,3673.0,2.72255]
[1718028295043,0.04740923,3673.1,3673.0,2.72255]
[1718028295421,0.84840923,3673.1,3673.0,2.72255]
[1718028295621,0.801,3673.1,3673.0,2.72255]
[1718028295916,0.84840923,3673.1,3673.0,2.72255]
[1718028300261,0.84840923,3673.1,3672.7,2.72272]
[1718028300432,0.801,3672.9,3672.7,2.72272]
[1718028301457,0.04757776,3672.8,3672.7,2.72272]
[1718028302449,0.801,3673.0,3672.7,2.72272]
[1718028302648,0.801,3673.0,3672.9,2.72262]
[1718028305834,7.116,3673.7,3672.9,2.72262]
[1718028306189,0.801,3673.3,3672.9,2.72262]
[1718028306470,0.801,3673.3,3673.1,2.72248]
[1718028307657,2.72202,3673.8,3673.3,2.72232]
[1718028307986,0.801,3673.4,3673.3,2.72232]
[1718028308348,0.84916777,3673.4,3673.3,2.72232]
[1718028309850,0.84916777,3673.4,3673.0,2.72253]
[1718028310051,0.801,3673.1,3673.0,2.72253]
[1718028310682,0.8492701,3673.1,3673.0,2.72253]